bitfinex/quotes_ETHUSD_20250807
["timestamp","ask_amount","ask_price","bid_price","bid_amount"]
[1754550272969,0.9368,3706.3,3706.0,0.1352]
[1754550273175,0.9368,3706.2,3706.0,0.1352]
[1754550273785,0.9368,3706.1,3706.0,0.1352]
[1754550274850,0.55,3706.5,3706.0,0.1352]
[1754550275051,0.9368,3706.1,3705.9,0.1362]
[1754550275478,0.9368,3706.0,3705.9,0.1362]
[1754550278986,0.496,3706.0,3705.9,0.1362]
[1754550279387,0.9368,3706.0,3705.9,0.1362]
[1754550279564,0.9368,3706.0,3705.9,0.001]
[1754550279763,0.4408,3706.0,3705.9,0.001]
[1754550280063,0.6312,3706.0,3705.9,0.001]
[1754550280703,1.072,3706.0,3705.9,0.001]
[1754550282012,1.504012,3706.0,3705.9,0.001]
[1754550283196,1.072,3706.0,3705.9,0.001]
[1754550283582,0.6312,3706.0,3705.9,0.001]
[1754550284246,1.4868,3706.3,3705.9,0.001]
[1754550284416,0.1352,3706.2,3705.9,0.001]
[1754550284580,1.072,3706.2,3705.9,0.001]
[1754550284786,0.9368,3706.1,3705.9,0.001]
[1754550285292,0.496,3706.1,3705.9,0.001]
[1754550285497,0.9368,3706.0,3705.9,0.001]
[1754550286016,0.1352,3706.2,3705.9,0.001]
[1754550286180,0.6312,3706.2,3705.9,0.001]
[1754550286380,0.1352,3706.2,3705.9,0.001]
[1754550286619,0.9368,3706.1,3705.9,0.001]
[1754550287196,0.496,3706.1,3705.9,0.001]
[1754550288308,0.496,3706.0,3705.9,0.001]
[1754550288490,0.1352,3706.2,3705.9,0.001]
[1754550288696,0.9368,3706.0,3705.9,0.001]
[1754550289224,0.496,3706.0,3705.9,0.001]
[1754550289418,0.1352,3706.2,3705.9,0.001]
[1754550290319,0.906,3706.1,3705.9,0.001]
[1754550291237,0.4599,3706.1,3705.9,0.001]
[1754550291682,0.1352,3706.2,3705.9,0.001]
[1754550291886,0.5951,3706.2,3705.9,0.001]
[1754550292816,0.4599,3706.1,3705.9,0.001]
[1754550294134,0.4461,3706.0,3705.9,0.001]
[1754550294293,0.906,3706.0,3705.9,0.001]
[1754550296010,4.15432703,3706.0,3705.9,0.001]
[1754550296497,4.28952703,3706.0,3705.9,0.001]
[1754550301931,3.38352703,3706.0,3705.9,0.001]
[1754550302130,3.84342703,3706.0,3705.9,0.001]
[1754550302299,4.28952703,3706.0,3705.9,0.001]
[1754550302638,2.27058676,3706.0,3705.9,0.001]
[1754550302792,4.129,3706.1,3705.9,0.4901]
[1754550303737,0.1352,3706.2,3705.9,0.4901]
[1754550305324,0.5951,3706.2,3705.9,0.001]
[1754550305529,3.24832703,3706.0,3705.9,0.001]
[1754550305698,6.71608229,3706.0,3705.9,0.001]
[1754550305898,6.38352703,3706.0,3705.9,0.001]
[1754550306227,7.28952703,3706.0,3705.9,0.001]
[1754550307097,7.39768803,3706.0,3705.9,0.001]
[1754550307294,8.95575333,3706.0,3705.9,0.001]
[1754550313158,9.28830859,3706.0,3705.9,1e-08]
[1754550313652,9.60858064,3706.0,3705.9,1e-08]
[1754550314014,13.08075333,3706.0,3705.9,1e-08]
[1754550314551,13.35145333,3706.0,3705.9,1e-08]
[1754550314718,13.08075333,3706.0,3705.9,1e-08]
[1754550315119,13.41330859,3706.0,3705.9,1e-08]
[1754550316426,13.73358064,3706.0,3705.9,1e-08]
[1754550317126,13.73358064,3706.0,3705.1,0.001]
[1754550317127,0.55,3705.2,3705.1,0.001]
[1754550317332,10.7074649,3705.2,3705.1,1e-08]
[1754550317540,11.41610964,3705.2,3705.1,1e-08]
[1754550317745,11.41610964,3705.2,3704.4,0.24310001]
[1754550317746,6.24941962,3704.5,3704.4,0.24310001]
[1754550318071,3.55,3704.4,3704.3,0.4557]
[1754550318278,3.6852,3704.4,3704.3,0.4557]
[1754550318974,0.1352,3704.4,3704.3,0.4557]
[1754550319179,0.1352,3704.7,3704.3,0.4557]
[1754550319374,0.1352,3704.7,3704.2,2.83482156]
[1754550319573,0.1352,3704.7,3704.4,0.4557]
[1754550319776,0.1352,3704.7,3704.4,0.4891]
[1754550319952,0.1352,3704.7,3704.4,0.432]
[1754550320777,0.55,3704.6,3704.2,0.6243]
[1754550320944,0.55,3704.4,3704.1,0.001]
[1754550321275,0.6852,3704.4,3704.1,0.001]
[1754550321456,0.6852,3704.4,3704.1,0.9315]
[1754550321641,0.6852,3704.4,3704.2,0.9305]
[1754550321842,0.1352,3704.4,3704.3,0.9305]
[1754550322056,4.2632,3704.8,3704.4,2.69947326]
[1754550322284,4.2632,3704.8,3704.5,0.9305]
[1754550322578,0.1352,3704.8,3704.5,0.9305]
[1754550322759,4.2632,3704.8,3704.4,2.69947326]
[1754550322958,4.2632,3704.8,3704.5,0.9305]
[1754550323571,4.2632,3704.8,3704.6,0.9305]
[1754550323783,4.2632,3704.8,3704.3,3.63006042]
[1754550323950,4.2632,3704.8,3704.4,3.62998958]
[1754550324150,4.2632,3704.8,3704.4,0.9305]
[1754550324360,0.55,3704.7,3704.1,0.001]
[1754550324584,0.55,3704.7,3704.1,2.83589321]
[1754550324744,0.55,3704.7,3704.1,0.1362]
[1754550325082,0.1352,3704.4,3704.1,0.001]
[1754550325275,0.55,3704.3,3704.1,0.001]
[1754550325889,1.3475725,3704.3,3704.1,0.001]
[1754550326084,0.6852,3704.2,3704.1,0.001]
[1754550327890,5.2783,3704.2,3704.1,0.001]
[1754550328270,4.8152,3704.2,3704.1,0.001]
[1754550328672,7.51483824,3704.2,3704.1,0.001]
[1754550328982,12.57700021,3704.2,3704.1,0.001]
[1754550331208,8.95726197,3704.2,3704.1,0.001]
[1754550331379,11.65690021,3704.2,3704.1,0.001]
[1754550331703,9.42036197,3704.2,3704.1,0.001]
[1754550332508,8.95726197,3704.2,3704.1,0.001]
[1754550333480,8.95726197,3704.2,3704.1,3.63121113]
[1754550333481,0.1352,3704.2,3704.1,3.63121113]
[1754550333810,4.2662,3704.6,3704.1,0.9315]
[1754550333991,3.1352,3704.6,3704.2,0.9305]
[1754550334197,3.1352,3704.6,3704.3,0.9305]
[1754550335310,3.1352,3704.6,3704.1,0.001]
[1754550335510,4.17805903,3704.6,3704.1,0.001]
[1754550335818,0.55,3704.5,3704.1,0.001]
[1754550336468,0.1352,3704.4,3704.1,0.001]
[1754550336882,0.1352,3704.4,3704.1,0.433]
[1754550337170,0.1352,3704.4,3704.1,3.63114868]
[1754550337371,0.1352,3704.4,3704.1,3.19914868]
[1754550337566,0.1352,3704.4,3704.2,0.432]
[1754550338306,0.1352,3704.4,3704.1,0.4995]
[1754550338805,0.1352,3704.4,3704.1,3.63120961]
[1754550339106,0.1352,3704.4,3704.1,0.9315]
[1754550339604,0.1352,3704.4,3704.1,0.001]
[1754550339969,0.1352,3704.4,3704.1,0.9315]
[1754550340622,0.1352,3704.4,3704.1,3.63120143]
[1754550340926,0.1352,3704.4,3704.1,0.433]
[1754550341221,0.1352,3704.4,3704.1,0.001]
[1754550342138,0.55,3704.3,3704.1,0.001]
[1754550342310,1.4701,3704.3,3704.1,0.001]
[1754550342511,1.1483,3704.2,3704.1,0.001]
[1754550343116,0.6852,3704.2,3704.1,0.001]
[1754550343833,0.6852,3704.2,3704.1,2.70071113]
[1754550343991,4.128,3704.4,3704.2,2.6996381]
[1754550344190,4.2622,3704.6,3704.3,0.9305]
[1754550344685,4.2622,3704.6,3704.4,0.432]
[1754550345224,0.1352,3704.6,3704.4,0.9305]
[1754550345411,3.1352,3704.6,3704.4,0.432]
[1754550345925,3.1352,3704.6,3704.2,0.4985]
[1754550346124,3.1352,3704.6,3704.2,0.9305]
[1754550346435,3.1352,3704.6,3704.3,0.432]
[1754550346591,0.1352,3704.6,3704.3,0.432]
[1754550346792,3.1352,3704.6,3704.4,0.9305]
[1754550347591,3.0,3704.6,3704.4,0.9305]
[1754550347792,0.55,3704.9,3704.5,0.432]
[1754550348014,0.1352,3704.8,3704.5,0.9305]
[1754550348226,0.1352,3704.8,3704.6,2.69934547]
[1754550348398,0.1352,3704.8,3704.5,2.69940753]
[1754550348599,0.1352,3705.0,3704.6,0.9305]
[1754550348827,4.13,3705.4,3704.7,0.9305]
[1754550349129,0.1352,3705.2,3704.8,3.19768073]
[1754550349305,3.1352,3705.3,3704.8,2.69918888]
[1754550349504,3.1352,3705.3,3704.9,0.9305]
[1754550349703,3.1352,3705.3,3704.9,3.13111321]
[1754550350015,3.5935,3705.3,3704.9,3.13111321]
[1754550350216,0.4583,3705.2,3704.7,2.83441266]
[1754550350414,3.1352,3705.3,3704.7,0.1352]
[1754550350618,3.1352,3705.3,3704.8,0.4404]
[1754550350923,3.1352,3705.3,3704.7,0.5865]
[1754550350924,3.1352,3705.3,3704.9,0.8917]
[1754550351129,0.1352,3705.3,3705.2,2.69890964]
[1754550351297,0.002,3705.4,3705.3,2.6988368]
[1754550352024,0.002,3705.4,3705.2,2.69890707]
[1754550352215,0.002,3705.4,3705.3,2.6988368]
[1754550352819,0.002,3705.4,3705.3,3.5905368]
[1754550353220,0.002,3705.4,3705.3,3.7257368]
[1754550353922,0.002,3705.4,3705.3,0.1352]
[1754550354433,0.002,3705.4,3705.3,2.8340368]
[1754550354926,0.002,3705.4,3705.3,0.1352]
[1754550357047,0.4603,3705.4,3705.3,0.1352]
[1754550357205,0.9171,3705.4,3705.3,0.1352]
[1754550357406,0.55,3705.3,3704.8,4.128]
[1754550357601,1.0503,3705.2,3704.8,4.128]
[1754550357843,0.1352,3705.2,3704.8,4.128]
[1754550358034,0.4583,3705.1,3704.8,4.128]
[1754550358208,0.4583,3705.0,3704.8,4.128]
[1754550359113,0.4583,3705.0,3704.7,0.1352]
[1754550359316,0.4583,3704.9,3704.7,4.128]
[1754550359530,0.61683,3705.0,3704.7,4.128]
[1754550359531,0.16003,3705.0,3704.7,4.128]
[1754550359733,0.9151,3704.9,3704.4,4.127]
[1754550360044,1.0503,3704.8,3704.4,4.127]
[1754550360403,0.1352,3704.8,3704.5,2.69938684]
[1754550360849,0.1352,3704.8,3704.7,2.69927389]
[1754550361053,0.1352,3705.2,3704.7,0.1352]
[1754550361253,0.1352,3705.2,3704.8,3.59083192]
[1754550361427,0.5935,3705.2,3704.8,2.69913192]
[1754550362136,0.1352,3705.2,3704.9,2.69912818]
[1754550362448,4.13,3705.4,3704.8,0.4513]
[1754550362449,0.002,3705.4,3705.0,0.8917]
[1754550362615,0.002,3705.4,3705.0,3.59074712]
[1754550364151,0.4603,3705.4,3704.9,2.8343212]
[1754550364453,0.9151,3705.3,3704.9,0.1352]
[1754550364623,0.9151,3705.2,3704.9,0.1352]
[1754550364821,0.3752965,3705.3,3704.8,4.127]
[1754550365028,0.9151,3705.1,3704.8,4.127]
[1754550365224,0.4583,3705.0,3704.8,4.127]
[1754550366954,0.4583,3705.0,3704.8,6.82617889]
[1754550367116,0.1352,3705.2,3704.8,6.82617889]
[1754550367316,0.1352,3705.2,3704.8,4.127]
[1754550367613,0.5935,3705.2,3704.8,6.82619929]
[1754550367818,0.5935,3705.2,3704.8,4.127]
[1754550368658,0.4583,3705.1,3704.8,4.127]
[1754550369154,0.1352,3705.2,3704.8,4.127]
[1754550369364,0.4583,3705.1,3704.8,4.127]
[1754550369656,0.002,3705.4,3705.0,2.8341846]
[1754550369851,0.002,3705.4,3705.1,2.69896837]
[1754550370023,0.002,3705.4,3705.0,3.72595137]
[1754550370222,0.4583,3705.3,3705.0,0.1352]
[1754550372065,0.4583,3705.2,3704.8,6.82618371]
[1754550372364,0.4583,3705.1,3704.8,6.96139732]
[1754550372765,0.4583,3705.1,3704.9,2.69911482]
[1754550372933,0.1352,3705.3,3704.9,2.69911482]
[1754550373336,0.5935,3705.3,3704.9,2.69911482]
[1754550373537,0.5935,3705.3,3704.8,7.40178677]
[1754550373779,1.0083,3705.2,3704.8,0.1352]
[1754550373937,0.1352,3705.1,3704.9,4.125]
[1754550374779,0.1372,3705.4,3705.0,0.8917]
[1754550374960,0.1372,3705.4,3705.0,0.4404]
[1754550375147,0.5955,3705.4,3704.9,4.2602]
[1754550375469,0.5955,3705.4,3704.9,6.95931994]
[1754550375869,0.5955,3705.4,3704.9,4.2602]
[1754550376068,0.1372,3705.4,3705.1,2.69896828]
[1754550376371,0.1372,3705.4,3705.0,0.8917]
[1754550376570,0.1372,3705.4,3705.0,0.4404]
[1754550376757,0.5955,3705.4,3704.9,6.95927269]
[1754550377246,0.4583,3705.3,3704.9,4.2602]
[1754550377574,0.4583,3705.3,3704.9,6.95932274]
[1754550378072,0.4583,3705.3,3705.0,2.69905156]
[1754550378281,0.1372,3705.4,3705.0,2.69905156]
[1754550378682,0.1372,3705.4,3705.1,2.69891937]
[1754550378845,0.1372,3705.4,3705.0,2.69904907]
[1754550379374,0.5955,3705.4,3705.0,2.69904935]
[1754550379746,0.4583,3705.3,3704.9,6.95931379]
[1754550379959,0.4568,3705.3,3704.9,4.2602]
[1754550380161,0.4792,3705.2,3704.9,4.2602]
[1754550380884,0.1372,3705.4,3705.0,2.69903844]
[1754550381038,0.6164,3705.4,3705.0,2.69903844]
[1754550381484,0.4792,3705.3,3705.0,2.69903844]
[1754550381785,0.4792,3705.3,3704.9,6.95931784]
[1754550382085,0.4792,3705.2,3704.9,6.95931784]
[1754550383477,0.1372,3705.4,3704.9,4.2602]
[1754550383683,0.4792,3705.1,3704.9,4.2602]
[1754550384685,0.4792,3705.0,3704.3,0.001]
[1754550384848,0.9135,3705.0,3704.6,0.1352]
[1754550385044,0.4792,3705.0,3704.5,0.1352]
[1754550385244,0.4343,3704.9,3704.5,0.1352]
[1754550385669,0.4792,3704.8,3704.5,0.1352]
[1754550385870,1.0487,3704.8,3704.5,4.121]
[1754550386093,0.4343,3704.7,3704.5,4.121]
[1754550386293,0.4792,3704.6,3704.5,4.121]
[1754550386911,0.9135,3704.6,3704.3,0.1362]
[1754550387101,0.9135,3704.6,3704.4,4.122]
[1754550387102,0.6144,3704.6,3704.4,4.122]
[1754550387397,0.4792,3704.5,3704.4,4.122]
[1754550388498,0.9135,3704.5,3704.4,4.122]
[1754550388866,0.9135,3704.5,3704.3,0.001]
[1754550389193,0.9135,3704.4,3704.3,4.122]
[1754550389801,0.4792,3704.4,3704.3,4.122]
[1754550390406,0.55,3705.1,3704.3,5.0314]
[1754550390700,0.1352,3704.8,3704.4,2.69947928]
[1754550391062,0.6144,3704.8,3704.4,2.69947928]
[1754550391464,0.6144,3704.8,3704.5,2.69941754]
[1754550391690,0.1352,3704.8,3704.6,4.121]
[1754550391899,3.0,3705.3,3704.6,4.121]
[1754550392100,0.4792,3705.0,3704.6,4.2562]
[1754550392303,0.1352,3705.1,3704.6,4.2562]
[1754550392602,0.4792,3704.9,3704.6,4.2562]
[1754550393097,0.4792,3704.9,3704.6,6.95553837]
[1754550393328,1.0487,3705.1,3704.6,6.95553837]
[1754550393534,0.6144,3705.1,3704.6,6.95553837]
[1754550394730,0.6144,3705.1,3704.7,2.69926026]
[1754550394900,0.6144,3705.1,3704.8,2.69919413]
[1754550395100,0.1352,3705.1,3704.8,2.69919413]
[1754550395299,0.1352,3705.1,3704.8,3.14989413]
[1754550395517,0.002,3705.4,3704.9,5.1656]
[1754550395692,0.1372,3705.4,3704.9,4.2562]
[1754550395894,0.1372,3705.4,3705.0,3.14970259]
[1754550396093,0.1372,3705.4,3705.0,3.60840259]
[1754550397232,0.1372,3705.4,3705.1,2.69897736]
[1754550398629,0.1372,3705.4,3705.1,4.12]
[1754550399320,0.6164,3705.4,3705.1,4.12]
[1754550400232,0.002,3705.4,3705.3,2.6988368]
[1754550400528,0.002,3705.4,3705.3,3.7434368]
[1754550400729,0.002,3705.4,3705.3,2.8340368]
[1754550401036,0.002,3705.4,3705.3,3.7434368]
[1754550402008,0.002,3705.4,3705.3,7.8634368]
[1754550403093,0.002,3705.4,3705.3,6.9540368]
[1754550403294,0.002,3705.4,3705.3,4.119]
[1754550403638,0.9155,3705.4,3705.3,4.119]
[1754550403837,1.59083025,3705.4,3705.3,4.119]
[1754550404019,0.67733025,3705.4,3705.3,4.119]
[1754550404223,0.002,3705.4,3705.3,4.119]
[1754550405839,0.4812,3705.4,3705.3,4.119]
[1754550408347,0.002,3705.4,3705.3,4.119]
[1754550408642,0.002,3705.4,3705.3,6.8178368]
[1754550409006,0.002,3705.4,3705.3,7.8624368]
[1754550409202,0.002,3705.4,3705.3,8.91857805]
[1754550413556,0.002,3705.4,3705.3,6.9530368]
[1754550413924,0.002,3705.4,3705.3,6.9540368]
[1754550416059,0.002,3705.4,3705.3,7.8795368]
[1754550416657,0.002,3705.4,3705.3,6.9540368]
[1754550416950,0.002,3705.4,3705.3,7.8795368]
[1754550417150,0.002,3705.4,3705.3,6.9540368]
[1754550417658,0.4894,3705.4,3705.3,6.9540368]
[1754550417956,0.002,3705.4,3705.3,6.9540368]
[1754550418337,0.4894,3705.4,3705.3,6.9530368]
[1754550419062,0.4894,3705.4,3705.3,4.2542]
[1754550419266,0.4894,3705.4,3705.2,0.1352]
[1754550419554,0.4894,3705.4,3705.3,4.12]
[1754550420024,0.9364,3705.4,3705.3,4.12]
[1754550420448,0.9364,3705.4,3705.1,0.1352]
[1754550420659,1.31182309,3705.3,3705.2,4.12]
[1754550421862,4.0106724,3705.3,3705.0,4.119]
[1754550422030,0.9344,3705.2,3705.0,4.119]
[1754550422225,3.24898888,3705.1,3704.4,0.001]
[1754550422546,0.1352,3704.9,3704.4,0.1362]
[1754550422722,0.9344,3704.8,3704.5,4.12]
[1754550423162,0.4874,3704.8,3704.5,6.81941298]
[1754550423372,0.4874,3704.8,3704.6,2.69932301]
[1754550423963,0.6852,3705.1,3704.7,2.69925498]
[1754550424126,0.1352,3705.1,3704.8,4.12]
[1754550424570,0.9344,3705.0,3704.7,4.12]
[1754550424869,1.23156,3704.9,3704.7,4.12]
[1754550425070,0.4874,3704.8,3704.7,4.12]
[1754550425253,0.4874,3704.8,3704.7,4.123]
[1754550425730,0.4874,3704.8,3704.6,2.69933871]
[1754550425931,0.4874,3704.8,3704.7,2.69927389]
[1754550426126,0.4874,3705.0,3704.6,6.82232933]
[1754550426524,0.4874,3705.0,3704.6,2.69932933]
[1754550426724,0.4874,3705.0,3704.4,2.83566743]
[1754550426725,0.4874,3705.0,3704.7,4.122]
[1754550426928,0.1352,3705.1,3704.7,4.122]
[1754550427129,0.4874,3705.0,3704.7,4.122]
[1754550428283,0.5822,3705.1,3704.7,4.122]
[1754550428430,0.4874,3704.9,3704.4,0.1362]
[1754550428629,0.4874,3704.9,3704.5,4.122]
[1754550428830,0.4874,3704.8,3704.5,6.82140128]
[1754550429753,0.4874,3705.0,3704.5,4.122]
[1754550430071,0.4874,3704.9,3704.6,2.69928477]
[1754550430362,0.4874,3704.8,3704.6,2.69928477]
[1754550430562,0.4874,3704.8,3704.6,4.12]
[1754550430788,0.4874,3704.8,3704.6,6.81934138]
[1754550431274,0.4874,3704.8,3704.6,4.12]
[1754550431576,0.4874,3704.8,3704.6,6.81933598]
[1754550431772,0.4874,3705.0,3704.6,4.12]
[1754550432073,0.4874,3705.3,3704.8,2.69918698]
[1754550432277,1.34176,3705.2,3704.7,2.69927389]
[1754550432570,1.4844,3705.1,3704.7,4.121]
[1754550432771,0.4874,3705.3,3704.7,4.121]
[1754550432978,0.6226,3705.3,3704.8,2.69919592]
[1754550433341,0.4874,3705.2,3704.8,2.69919592]
[1754550433983,0.4874,3705.2,3704.9,2.69912336]
[1754550434283,0.4874,3705.2,3705.0,2.69905028]
[1754550434639,0.4874,3705.2,3704.9,2.69910713]
[1754550435548,0.1352,3705.3,3704.9,2.69910713]
[1754550435749,0.002,3705.4,3705.1,2.69892433]
[1754550435973,0.002,3705.4,3705.0,0.9255]
[1754550436162,0.002,3705.4,3705.3,2.6988368]
[1754550437377,0.002,3705.4,3705.3,3.6243368]
[1754550437682,0.002,3705.4,3705.3,3.7595368]
[1754550439356,0.002,3705.4,3705.3,7.8815368]
[1754550441275,0.002,3705.4,3705.3,7.9180368]
[1754550441437,0.002,3705.4,3705.3,6.9560368]
[1754550441937,0.4929,3705.4,3705.3,6.9560368]
[1754550442362,0.002,3705.4,3705.3,6.9560368]
[1754550443606,0.4929,3705.4,3705.3,6.9560368]
[1754550443770,0.002,3705.4,3705.3,6.9560368]
[1754550446674,0.4929,3705.4,3705.3,4.2572]
[1754550447009,0.55,3705.3,3704.6,2.69927854]
[1754550447205,0.83351,3705.3,3704.7,6.95346076]
[1754550447504,0.9271,3705.2,3704.7,4.2542]
[1754550447720,0.002,3705.4,3704.8,0.962]
[1754550447869,0.002,3705.4,3705.3,2.6988368]
[1754550448210,0.002,3705.4,3705.3,2.8340368]
[1754550448384,0.002,3705.4,3705.3,3.7960368]
[1754550449646,0.002,3705.4,3705.3,4.85773358]
[1754550449782,0.002,3705.4,3705.3,4.88472194]
[1754550451019,0.002,3705.4,3705.3,4.85773358]
[1754550451426,0.002,3705.4,3705.3,4.88472194]
[1754550451799,0.002,3705.8,3705.4,2.69876396]
[1754550452124,0.002,3705.8,3705.7,2.69854548]
[1754550452310,0.002,3705.8,3705.7,6.98273093]
[1754550452511,0.002,3705.8,3705.7,6.95574548]
[1754550452826,0.002,3705.8,3705.7,7.91774548]
[1754550454035,0.002,3705.8,3705.7,2.83374548]
[1754550454333,0.002,3705.8,3705.7,7.83809401]
[1754550454725,0.002,3705.8,3705.7,8.31239401]
[1754550454927,0.002,3705.8,3705.7,8.80009401]
[1754550458207,0.002,3705.8,3705.7,4.67809401]
[1754550458442,0.002,3705.8,3705.7,8.79809401]
[1754550462952,0.002,3705.8,3705.7,7.83609401]
[1754550463133,0.4929,3705.8,3705.7,6.95174548]
[1754550463328,0.9291,3705.8,3705.7,2.83374548]
[1754550463642,0.9291,3705.8,3705.7,6.95174548]
[1754550464306,0.9291,3705.8,3705.7,2.83374548]
[1754550464573,0.9291,3705.8,3705.7,6.95174548]
[1754550465245,0.002,3705.8,3705.7,6.95174548]
[1754550466144,0.4929,3705.8,3705.7,6.95174548]
[1754550466754,0.9291,3705.8,3705.7,6.95174548]
[1754550467044,0.4929,3705.8,3705.7,6.95174548]
[1754550467623,0.002,3705.8,3705.7,6.95174548]
[1754550468012,0.4929,3705.8,3705.7,6.95174548]
[1754550468474,0.4929,3705.8,3705.7,2.83374548]
[1754550468639,0.4929,3705.8,3705.7,6.95174548]
[1754550470167,0.9405,3705.8,3705.7,6.95174548]
[1754550470469,0.4929,3705.8,3705.7,6.95174548]
[1754550471363,0.9405,3705.8,3705.7,2.83374548]
[1754550471671,0.9405,3705.8,3705.7,6.95174548]
[1754550472028,0.4929,3705.8,3705.7,6.95174548]
[1754550475169,0.9405,3705.8,3705.7,6.95174548]
[1754550475373,0.4929,3705.8,3705.7,6.95174548]
[1754550476535,0.9405,3705.8,3705.7,6.95174548]
[1754550476734,0.9405,3705.8,3705.7,2.83374548]
[1754550476961,0.9405,3705.8,3705.7,6.95174548]
[1754550480278,0.9405,3705.8,3705.6,2.69860149]
[1754550480487,0.002,3705.8,3705.7,4.118]
[1754550481045,0.91,3705.8,3705.7,4.118]
[1754550482184,0.91,3705.8,3705.6,2.83380149]
[1754550482478,0.002,3705.8,3705.7,4.118]
[1754550483056,0.91,3705.8,3705.7,4.118]
[1754550483379,0.91,3705.8,3705.7,6.81654548]
[1754550483753,0.4624,3705.8,3705.7,6.81654548]
[1754550483943,0.002,3705.8,3705.7,6.81654548]
[1754550485580,0.4624,3705.8,3705.7,6.81654548]
[1754550485759,0.002,3705.8,3705.7,6.81654548]
[1754550486279,0.4624,3705.8,3705.7,6.81654548]
[1754550493680,0.91,3705.8,3705.6,0.001]
[1754550493986,3.38374548,3705.7,3705.6,0.001]
[1754550494152,7.12960052,3705.7,3705.6,0.001]
[1754550494348,8.03760052,3705.7,3705.6,0.001]
[1754550494651,8.17280052,3705.7,3705.6,0.001]
[1754550495073,5.47425504,3705.7,3705.6,0.001]
[1754550495798,8.17280052,3705.7,3705.6,0.001]
[1754550499197,5.47425504,3705.7,3705.6,0.001]
[1754550499695,8.17280052,3705.7,3705.6,0.001]
[1754550500896,5.47425504,3705.7,3705.6,0.001]
[1754550501085,8.17280052,3705.7,3705.6,0.001]
[1754550503594,12.29080052,3705.7,3705.6,0.001]
[1754550508126,9.13845504,3705.7,3705.6,0.001]
[1754550508314,8.3926,3705.7,3705.6,0.001]
[1754550509423,0.1372,3705.8,3705.6,3.619363]
[1754550509664,0.002,3705.8,3705.7,0.9198]
[1754550509925,0.002,3705.7,3705.6,0.1362]
[1754550510525,0.002,3705.7,3705.6,0.001]
[1754550516605,1.89506,3705.7,3705.6,0.001]
[1754550516806,2.03026,3705.7,3705.6,0.001]
[1754550517104,1.56986,3705.7,3705.6,0.001]
[1754550517299,0.554,3705.7,3705.6,0.001]
[1754550517499,0.002,3705.7,3705.6,0.001]
[1754550517928,0.4562,3705.7,3705.6,0.001]
[1754550518206,1.4666,3705.7,3705.6,0.001]
[1754550518736,7.97635848,3705.7,3705.6,0.001]
[1754550518941,9.80290192,3705.7,3705.6,0.001]
[1754550522428,13.91990192,3705.7,3705.6,0.001]
[1754550532761,14.25237376,3705.7,3705.6,0.001]
[1754550533580,13.91990192,3705.7,3705.6,0.001]
[1754550533777,8.88830192,3705.7,3705.6,0.001]
[1754550533947,7.930213,3705.7,3705.6,0.9272]
[1754550534367,8.480213,3705.7,3705.6,0.9272]
[1754550534738,5.480213,3705.7,3705.6,0.9272]
[1754550534977,4.669,3705.7,3705.6,0.9272]
[1754550535571,4.8042,3705.7,3705.6,0.9272]
[1754550535738,4.2542,3705.7,3705.6,0.9272]
[1754550535944,0.002,3705.7,3705.6,0.9272]
[1754550536479,0.002,3705.7,3705.6,3.6258183]
[1754550536868,0.002,3705.7,3705.6,4.25827408]
[1754550537193,0.002,3705.7,3705.6,4.39347408]
[1754550537590,0.002,3705.7,3705.6,3.89927408]
[1754550537751,0.002,3705.8,3705.7,2.69854548]
[1754550537752,1e-08,3705.8,3705.7,2.69854548]
[1754550537949,1e-08,3705.8,3705.7,4.64627116]
[1754550540985,1e-08,3705.8,3705.7,4.67325661]
[1754550541290,1e-08,3706.1,3705.9,5.69839984]
[1754550541450,1e-08,3706.1,3706.0,5.7253103]
[1754550541654,1e-08,3706.1,3706.0,6.62452703]
[1754550541970,1e-08,3706.1,3706.0,7.25698281]
[1754550542294,1e-08,3706.1,3706.0,7.46433959]
[1754550546278,1e-08,3706.1,3706.0,11.57933959]
[1754550546910,1e-08,3706.1,3706.0,11.37198281]
[1754550547422,1e-08,3706.1,3706.0,7.25698281]
[1754550547576,1e-08,3706.1,3706.0,11.37198281]
[1754550547778,1e-08,3706.1,3706.0,11.50718281]
[1754550548682,1e-08,3706.2,3706.1,5.69825422]
[1754550548987,1e-08,3706.6,3706.5,2.69796303]
[1754550549186,1e-08,3706.8,3706.7,5.69781746]
[1754550549740,1e-08,3706.8,3706.7,6.75921746]
[1754550552111,1e-08,3706.8,3706.7,7.22021746]
[1754550552316,1e-08,3706.8,3706.7,7.85267324]
[1754550553244,1e-08,3706.8,3706.7,7.39167324]
[1754550553890,1e-08,3706.8,3706.7,7.49974824]
[1754550554641,1e-08,3706.8,3706.7,11.61374824]
[1754550556134,1e-08,3706.8,3706.7,11.50567324]
[1754550557731,1e-08,3706.8,3706.7,6.89747324]
[1754550557927,1e-08,3706.8,3706.7,11.50567324]
[1754550559535,0.46100001,3706.8,3706.7,6.46547324]
[1754550559835,0.46100001,3706.8,3706.7,10.57947324]
[1754550560243,0.46100001,3706.8,3706.7,10.57847324]
[1754550560540,1e-08,3706.8,3706.7,10.57847324]
[1754550562323,1e-08,3706.8,3706.7,11.39207324]
[1754550562525,1e-08,3706.8,3706.7,11.52727324]
[1754550565224,1e-08,3706.8,3706.7,11.05067324]
[1754550565940,1e-08,3706.8,3706.7,11.52727324]